Cogmind - Beta 13 @@@ ROGUE MODE // 2024.06.13 @ 19:27:25 Player: ovsyanka Result: Destroyed by as-35439 with Assembled Heavy Rifle Performance ------------- Evolutions (0) 0 Regions Visited (2) 400 Robots Destroyed (22) 110 Value Destroyed (302) 302 Prototype IDs (3) 60 Alien Tech Used (0) 0 Bonus (0) 0 TOTAL SCORE: 872 Bonus ------- None Cogmind --------- Core Integrity 0/250 Matter 166/300 Energy 80/100 System Corruption 15% Temperature Cool (0) Movement Core (400) Ox7 Location -10/Mines Parts ------- > --- POWER (1) -------- (None) > --- PROPULSION (2) --- (None) > --- UTILITY (2) ------ Large Storage Unit > --- WEAPON (2) ------- Particle Gun > --- INVENTORY (15) --- Improved Ion Engine Wheel VTOL Module VTOL Module VTOL Module VTOL Module Improved Heat Sink Large Storage Unit Targeting Computer Light Armor Plating Trap Extractor (0/4) Autogun Improved Light Cannon Peak State ------------ > --- POWER ------------ Improved Ion Engine > --- PROPULSION ------- Light Treads Light Treads > --- UTILITY ---------- Large Storage Unit Seismic Detector > --- WEAPON ----------- Autogun Improved Light Cannon > --- INVENTORY -------- Improved Ion Engine Wheel Wheel VTOL Module VTOL Module VTOL Module VTOL Module Large Storage Unit Improved Terrain Scanner Light Armor Plating Trap Extractor EM Pulse Gun Medium Laser Autogun Improved Light Cannon [Rating: 12] Favorites ----------- Power Improved Ion Engine Engine Improved Ion Engine Propulsion Light Treads Treads Light Treads Wheel Wheel Utility Seismic Detector Device Seismic Detector Storage Large Storage Unit Weapon Autogun Energy Gun Medium Laser Ballistic Gun Autogun Ballistic Cannon Improved Light Cannon Launcher Rocket Launcher Build | -11 -10 -10 ------- Run | Yrd Mat Min Slots Evolved . | . . . Power . | . . . Propulsion . | . . . Utility . | . . . Weapon . | . . . Parts Attached 25 | 12 10 3 Power 2 | 1 1 . Engine 2 | 1 1 . Core . | . . . Reactor . | . . . Propulsion 5 | 3 2 . Treads 3 | 1 2 . Leg . | . . . Wheel 2 | 2 . . Hover . | . . . Flight . | . . . Utility 6 | 5 1 . Device 4 | 4 . . Storage 2 | 1 1 . Processor . | . . . Hackware . | . . . Protection . | . . . Artifact . | . . . Weapon 12 | 3 6 3 Energy Gun 3 | 1 1 1 Energy Cannon . | . . . Ballistic Gun 7 | 2 4 1 Ballistic Cannon 1 | . 1 . Launcher 1 | . . 1 Special Weapon . | . . . Impact Weapon . | . . . Slashing Weapon . | . . . Piercing Weapon . | . . . Special Melee Weapon . | . . . Unidentified Prototypes . | . . . Parts Lost 7 | . . 7 Power 1 | . . 1 Propulsion 2 | . . 2 Utility 1 | . . 1 Weapon 3 | . . 3 Highest Loss Streak 7 | . . 7 To Critical Strikes . | . . . Average Slot Usage (%) 99 | . 100 95 Engine 13 | . 14 13 Treads 25 | . 25 26 Wheel 2 | . 2 . Device 13 | . 14 12 Storage 14 | . 14 14 Energy Gun 1 | . 2 . Ballistic Gun 25 | . 24 26 Naked Turns . | . . . Heaviest Build 34 | 15 34 34 Greatest Support 40 | 26 40 40 Greatest Overweight (x) 3 | 1 3 . Average Overweight (x) . | . . . Largest Inventory Capacity 15 | 8 15 15 Average Capacity 14 | 7 14 15 Most Carried 15 | 8 15 15 Average Carried 13 | 6 14 14 Final Capacity 15 | 8 15 15 Final Carried 15 | 8 15 13 Class Distribution -------------------- 100% | Mutant Dominant Class ---------------- Mutant | -10/Materials Mutant | -10/Mines Resources | -11 -10 -10 ----------- Run | Yrd Mat Min Matter Collected 838 | 350 411 77 Remotely . | . . . Salvage Created 635 | 130 371 134 Parts 49 | 11 28 10 Haulers Intercepted 1 | . 1 . Recyclers Shooed 1 | . . 1 Parts Field Recycled . | . . . Retrieved Matter . | . . . Parts Self-Destructed . | . . . Prevented . | . . . Kills | -11 -10 -10 ------- Run | Yrd Mat Min Combat Hostiles Destroyed 21 | . 10 11 Guns 16 | . 10 6 AOE 5 | . . 5 Classes Destroyed 9 | 2 6 1 Worker 2 | . 1 1 Tunneler 3 | 3 . . Hauler 1 | . 1 . Recycler 1 | 1 . . Operator 1 | . 1 . Watcher 1 | . 1 . Swarmer 9 | . 6 3 Grunt 4 | . 4 . Assembled 8 | . . 8 Best Kill Streak 9 | 2 3 9 Combat Bots Only 8 | . 3 8 Max Kills in Single Turn 5 | 1 2 5 Gunslinging . | . . . Exploded 5 | . . 5 Melee . | . . . Uniques/NPCs Destroyed . | . . . Combat | -11 -10 -10 -------- Run | Yrd Mat Min Hostile Shots Fired 111 | . 38 73 Missed 30 | . 11 19 Damage Taken 1158 | . 252 906 Core 251 | . 66 185 Absorbed by Shields . | . . . Regen/Repaired (Parts) 19 | . 19 . Core Remaining (%) 100 | 100 . . Volleys Fired 82 | 10 40 32 Largest 2 | 2 2 2 Hottest 70 | 40 70 56 Shots Fired 145 | 20 80 45 Gun 144 | 20 80 44 Cannon . | . . . Launcher 1 | . . 1 Special . | . . . Kinetic 141 | 20 77 44 Thermal 3 | . 3 . Explosive 1 | . . 1 Electromagnetic . | . . . Robot Hit Streak 11 | 6 7 11 Robot Miss Streak 6 | 2 6 4 Penetration Max . | . . . Secondary Targets 1 | . . 1 Max Gunslinging Chain 1 | . . 1 Shots Hit Robots 75 | 12 34 29 Core Hits 40 | 5 16 19 Critical Kills . | . . . Critical Parts Destroyed 1 | . . 1 Critical Strikes 1 | . . 1 Destroy 1 | . . 1 Melee Attacks . | . . . Impact . | . . . Slashing . | . . . Piercing . | . . . Sneak Attacks . | . . . Combat Hostiles . | . . . Follow-up Attacks . | . . . Damage Inflicted 1390 | 156 516 718 Guns 1133 | 156 514 463 Cannons . | . . . Explosions 255 | . . 255 Melee . | . . . Ramming 2 | . 2 . Kinetic 1096 | 156 477 463 Thermal 37 | . 37 . Explosive 255 | . . 255 Electromagnetic . | . . . Impact . | . . . Slashing . | . . . Piercing . | . . . Highest Corruption 15 | . 7 15 Average Corruption 6 | . 5 7 Corruption Purged . | . . . Corruption Blocked . | . . . Effects 39 | . 22 17 Message Errors 11 | . 8 3 Matter Fused 4 | . 2 2 Heat Flow Errors 4 | . 3 1 Energy Discharges 9 | . 4 5 Parts Fused 1 | . . 1 Data Loss (minor) 1 | . . 1 Data Loss (major) 4 | . 4 . Misfires 2 | . . 2 Alerts 1 | . 1 . Weapon Failures 2 | . . 2 Overload Shots . | . . . Overflow Damage 22 | . . 22 Projectiles . | . . . Explosions 22 | . . 22 Melee . | . . . Knockbacks . | . . . Impact . | . . . Kinetic . | . . . Secondary . | . . . Self-Inflicted Damage 48 | . . 48 Shots 1 | . . 1 Rammed 1 | . 1 . Targets Rammed 1 | . 1 . Kicked . | . . . Crushed . | . . . Highest Temperature 290 | . 290 106 Average Temperature 43 | . 51 25 Received Heat Transfer 131 | . 51 80 Siege Activations . | . . . Robots Corrupted . | . . . Combat Hostiles . | . . . Parts Fried . | . . . Impact Corruptions . | . . . Robots Melted . | . . . Combat Hostiles . | . . . Parts Melted . | . . . Heat Transferred 111 | . 111 . Parts Sabotaged . | . . . Parts Stolen . | . . . Parts Stripped . | . . . Power Chain Reactions . | . . . Alert | -11 -10 -10 ------- Run | Yrd Mat Min Peak Influence 163 | 20 163 90 Initial 13 | . 13 5 Average 65 | 9 75 48 Maximum Alert Level . | . . . Low Security (%) 100 | 100 100 100 Level 1 . | . . . Level 2 . | . . . Level 3 . | . . . Level 4 . | . . . Level 5 . | . . . High Security . | . . . Max Security . | . . . Squads Dispatched 1 | . 1 . Investigation . | . . . Extermination . | . . . Reinforcement 1 | . 1 . Assault . | . . . Garrison . | . . . Intercept . | . . . Searches Triggered . | . . . Construction Impeded . | . . . Haulers Reinforced . | . . . Active Scanning Responses . | . . . Cargo Convoy Interrupts . | . . . Stealth | -11 -10 -10 --------- Run | Yrd Mat Min Distress Signals 1 | . 1 . Communications Jammed . | . . . Distress Signals . | . . . Times Spotted 40 | . 24 16 Peak Tracking Total 9 | . 5 9 Tactical Retreats 1 | . 1 . Traps | -11 -10 -10 ------- Run | Yrd Mat Min Traps Triggered 4 | . 4 . Indirectly . | . . . Trap Hack Attempts . | . . . Triggered . | . . . Disarmed . | . . . Reprogrammed . | . . . Reused . | . . . Traps Extracted . | . . . Installed . | . . . Triggered . | . . . Machines | -11 -10 -10 ---------- Run | Yrd Mat Min Machines Disabled . | . . . Max in Single Turn . | . . . Machines Repaired . | . . . Machines Dismantled . | . . . Machines Sabotaged . | . . . Overloaded Fab Kills . | . . . Hacking | -11 -10 -10 --------- Run | Yrd Mat Min Machines Accessed 7 | . 7 . Terminals 6 | . 6 . Fabricators . | . . . Repair Stations 1 | . 1 . Recycling Units . | . . . Scanalyzers . | . . . Garrison Access . | . . . Total Hacks 18 | . 18 . Successful 8 | . 8 . Failed 9 | . 9 . Catastrophic . | . . . Database Lockouts 1 | . 1 . Manual 7 | . 7 . Terminals 16 | . 16 . Fabricators . | . . . Repair Stations 2 | . 2 . Recycling Units . | . . . Scanalyzers . | . . . Garrison Access . | . . . Terminal Hacks 6 | . 6 . Robot Analysis 2 | . 2 . Prototype ID Bank 2 | . 2 . Branch Access Points 1 | . 1 . Emergency Access Points 1 | . 1 . Fabricator Hacks . | . . . Repair Station Hacks 2 | . 2 . Scan Component 1 | . 1 . Repair 1 | . 1 . Recycling Unit Hacks . | . . . Scanalyzer . | . . . Garrison Access Hacks . | . . . Unauthorized Hacks . | . . . Terminals . | . . . Fabricators . | . . . Repair Stations . | . . . Recycling Units . | . . . Scanalyzers . | . . . Garrison Access . | . . . Data Cores Recovered . | . . . Used . | . . . Hacking Detections 4 | . 4 . Full Trace Events . | . . . Feedback Events . | . . . Feedback Blocked . | . . . Robot Schematics Acquired . | . . . Robots Built . | . . . Authchips . | . . . Time . | . . . Total Robot Build Rating . | . . . Part Schematics Acquired . | . . . Parts Built . | . . . Authchips . | . . . Time . | . . . Total Part Build Rating . | . . . Parts Repaired 1 | . 1 . Time 38 | . 38 . Parts Recycled . | . . . Recycled Matter . | . . . Retrieved Matter . | . . . Retrieved Components . | . . . Parts Scanalyzed . | . . . Part Schematics Acquired . | . . . Parts Damaged . | . . . Bothacking | -11 -10 -10 ------------ Run | Yrd Mat Min Used RIF Installer . | . . . Robots Hacked . | . . . Non-combat . | . . . Combat . | . . . Robot Hacks Applied . | . . . Relay Couplers Released . | . . . Fabnet Peak Effective % . | . . . Robots Rewired . | . . . Allies Hacked . | . . . Hacks Repelled . | . . . Allies | -11 -10 -10 -------- Run | Yrd Mat Min Total Allies . | . . . Largest Group . | . . . Highest-Rated Group . | . . . Highest-Rated Ally . | . . . Total Orders . | . . . Ally Attacks . | . . . Total Damage . | . . . Kills . | . . . Allies Corrupted . | . . . Allies Melted . | . . . Intel | -11 -10 -10 ------- Run | Yrd Mat Min Robot Analysis Total 2 | . 2 . Derelict Logs Recovered 1 | . . 1 Drone Launches . | . . . Drone Recoveries . | . . . Exploration | -11 -10 -10 ------------- Run | Yrd Mat Min Turns Passed 2305 | 150 1672 483 Spaces Moved 1225 | 97 939 189 Core 2 | 2 . . Treads 908 | . 719 189 Legs . | . . . Wheels 315 | 95 220 . Hover . | . . . Flight . | . . . Fastest Speed 50 | 50 95 160 Average Speed 146 | 93 148 160 Slowest Speed 160 | 100 160 160 Overloaded Moves . | . . . Propulsion Burnouts . | . . . Robots Hopped . | . . . Cave-ins Triggered . | . . . Exploration Rate (%) 50 | 5 96 51 Regions Visited 2 Branch Regions 1 Pre-discovered Areas . | . . . Known Exits Taken 1 | . 1 . Unknown Exits Taken 1 | 1 . . Scrap Searched 1 | . . 1 Spaces Dug . | . . . Terrain Destroyed 14 | . . 14 Melee . | . . . Projectile . | . . . AOE 14 | . . 14 Terrain Rammed . | . . . Walls Destroyed . | . . . Machines Disabled . | . . . Actions | -11 -10 -10 --------- Run | Yrd Mat Min Total 1625 | 135 1155 335 Wait 235 | 3 123 109 Move 1223 | 96 938 189 Hop . | . . . Pick Up 33 | 10 22 1 Fast Attach 10 | 7 3 . Attach 2 | . . 2 Detach 1 | . 1 . Swap 13 | 5 7 1 Drop 25 | 4 20 1 Fire 82 | 10 40 32 Melee . | . . . Ram . | . . . Kick . | . . . Crush 1 | . 1 . Escape Stasis . | . . . Rewire . | . . . Trap . | . . . Miscellaneous . | . . . Route ------- -11/Scrapyard -10/Materials (discovered 5 exits: *Mat x3 / *Min / [*Sub]) -10/Mines (discovered 1 exit: Mat) History --------- Turn | Location | Event 19 | -11/Scrapyard | Discovered new exit (range 15) 151 | -11/Scrapyard | Entered Materials 309 | -10/Materials | Build established: Mutant 336 | -10/Materials | Discovered new exit (range 11) 519 | -10/Materials | Discovered new exit (range 8) 732 | -10/Materials | Discovered new exit (range 15) 800 | -10/Materials | Central database locked down 879 | -10/Materials | Repaired Imp. Heat Sink 1093 | -10/Materials | Discovered new exit (range 3) 1175 | -10/Materials | Identified exit to Mines 1390 | -10/Materials | Discovered new exit (range 9) 1823 | -10/Materials | Entered Mines 1831 | -10/Mines | Met a Derelict bent on vengeance 2001 | -10/Mines | Found a hidden stash of uninstalled traps 2044 | -10/Mines | Received a Rocket Launcher from a helpful Derelict 2063 | -10/Mines | Identified exit to Materials 2238 | -10/Mines | Assembled infested the area 2268 | -10/Mines | System corruption reached 10% 2276 | -10/Mines | Core integrity fell below 50% 2300 | -10/Mines | Core integrity fell below 20% 2306 | -10/Mines | Destroyed by as-35439 with Assembled Heavy Rifle Last Messages --------------- 02268_ Destroyed Rocket Launcher. 02268_ as-50516 destroyed. 02268_ as-06342 destroyed. 02268_ as-99238 destroyed. 02268_ as-24903 destroyed. 02268_ as-75106 destroyed. 02271_ Destroyed Asb. Hover Unit. 02272_ Autogun destroyed. 02275_ as-88548 destroyed. 02277_ System corrupted: Autogun jammed. 02280_ Imp. Ion Engine destroyed. 02284_ as-93866 destroyed. 02290_ as-94226 destroyed. 02292_ System corrupted: FCS attempts to trigger Autogun. 02292_ System corrupted: Autogun misfires. 02297_ System corrupted: Autogun jammed. 02299_ The unstable cave ceiling collapses. 02304_ Lgt. Treads destroyed. 02305_ Autogun destroyed. Map ----- +----------------------------------------------------+ | | | | | | | | | | | | | | | ?????????????????????????????????????????????????? | | ?????????????????????????????????????????????????? | | ???????????????#?????????????????????????????????? | | ??????????????? #????????????????????????????????? | | ?????????????? ####????????????????????????????? | | ??????????????? ?????????????????????????????? | | ??????????????? ?????????????????????????????? | | ??????????????? ?????????????????????????????? | | ??????????????? ?????????????????????????????? | | ???????????????# ??????????????????????????????? | | ?????## ??????## ??????????????????????????????? | | ?????# ??#### ??????????????????????????????? | | ?????# ## #??????????????????????????????? | | ?????# #????????????##????????????????? | | ?????# ###?????##?? ##???????????????? | | ???????? ###### ## ##??????????????? | | ???????????? a%a #??????????????? | | ???????????????# a % #??????????????? | | ???????????????## %@ #??????????????? | | ???????????????## % %% # #???????????????? | | ??????????????## = # % ##????????????????????? | | ??????????????# !%## ##?????????????????????? | | ??????????????# *#########?????????????????????? | | ??????????????# ####??????####????????????????? | | ??????????????## #??#### #????????????????? | | ???????????????## ### #?????????????????? | | ????????????????#### ## #??????????????????? | | ???????????????????# ## #???????????????????? | | ???????????????????# #?????? ???????????? | | ???????????????????# ## ##??? #???????????? | | ??????????????# #### ## ## #????????????? | | ??????????????# #????????????? | | ??????????????###### #????????????? | | ???????????????????#### #????????????? | | ?????????????????????# ## ##????????????? | | ?????????????????????# ##?? ##?????????????? | | ?????????????????????# #???? ##??????????????? | | ????????????????###### #????? #?????#####?????? | | ????????????????# #????? #?????# #?????? | | ????????????????# #????? #?????# #?????? | | ????????????????# ######?????# #?????# ##????? | | ????????????????# #??????????# #?????# #????? | | ?????????????#### #??????????# #????## #????? | +----------------------------------------------------+ Best States ------------- Heat Dissipation 25 Energy Generation 12 Energy Capacity 265 Matter Stores 300 Matter Capacity 300 Sight Range 16 Terrain Scan Range 16 Terrain Scan Density 10 Evasion (%) 42 Recoil Reduction 2 Item Schematics ----------------- None Robot Schematics ------------------ None Fabricated ------------ Nothing Alien Tech Used ----------------- None Achievements -------------- None Challenges ------------ None Game ------ Seed ThermoelectricGatlingSlayer Manual? 0 Play Time 00:17:37 Cumulative 26.4 hours Start 2024.06.13 @ 19:12:04 End 2024.06.13 @ 19:27:25 Sessions 1 Manual Loads 0 Difficulty Rogue Special Mode None Game No. 15 Rogue 2 Adventurer 13 Explorer 0 Win Type - Total 0 Types 0/0/0/0/0/0/0/0/0 Lore% 20 Gallery% 31 Achievement% 28 Wizard Run 0 Options --------- Layout 2 ASCII 0 Keyboard 0 Movement Numpad Keybinds 0 Fullscreen 2 Font 16/Swanston Map View 55x47 Zoom Use 0% Tactical HUD 1 Map Filters NONE Filters NONE Steam 0 RUN: 484dcd7b-51dd-4bb4-b2bd-eb68ffaa532b